{"text_format":"3","workbook":"xlsx","n_sheets":2,"sheets":["Budžeta kopsavilkums","Budžeta informācija"],"not_rendered":{"images":1,"defined_names":1},"read":"whole","date_system":"1900"}

{"sheet":"Budžeta kopsavilkums","index":0,"n_rows":28,"n_cols":7,"rows_kept":28}
[{"$nulls":6}," "]
[]
[null,"KOPĒJAIS KĀZU BUDŽETS",{"v":20000,"d":"20,000 EUR"}]
[]
[null,"IZDEVUMI","Sadalījums \n%","Piešķirtais budžets","Aptuvenās \nIzmaksas","Faktiskās \nIzmaksas"]
[null,"Uzņemšana",{"v":0.5,"d":"50%"},{"$f":"Kopējais_kāzu_budžets*'Budžeta kopsavilkums'!$C6","v":{"v":10000,"d":"10,000 EUR"}},{"$f":"Tabula_Uzņemšana[[#Totals],[Plānotās izmaksas]]","v":{"v":0,"d":"0 EUR"}},{"$f":"Tabula_Uzņemšana[[#Totals],[Faktiskās izmaksas]]","v":{"v":0,"d":"0 EUR"}}]
[null,"Apģērbs",{"v":0.1,"d":"10%"},{"$f":"Kopējais_kāzu_budžets*'Budžeta kopsavilkums'!$C7","v":{"v":2000,"d":"2,000 EUR"}},{"$f":"Tabula_Apģērbs[[#Totals],[Plānotās izmaksas]]","v":{"v":0,"d":"0 EUR"}},{"$f":"Tabula_Apģērbs[[#Totals],[Faktiskās izmaksas]]","v":{"v":0,"d":"0 EUR"}}]
[null,"Ziedi un rotājumi",{"v":0.1,"d":"10%"},{"$f":"Kopējais_kāzu_budžets*'Budžeta kopsavilkums'!$C8","v":{"v":2000,"d":"2,000 EUR"}},{"$f":"Tabula_Ziedi_un_dekorācijas[[#Totals],[Plānotās izmaksas]]","v":{"v":0,"d":"0 EUR"}},{"$f":"Tabula_Ziedi_un_dekorācijas[[#Totals],[Faktiskās izmaksas]]","v":{"v":0,"d":"0 EUR"}}]
[null,"Mūzika",{"v":0.1,"d":"10%"},{"$f":"Kopējais_kāzu_budžets*'Budžeta kopsavilkums'!$C9","v":{"v":2000,"d":"2,000 EUR"}},{"$f":"Tabula_Mūzika[[#Totals],[Plānotās izmaksas]]","v":{"v":0,"d":"0 EUR"}},{"$f":"Tabula_Mūzika[[#Totals],[Faktiskās izmaksas]]","v":{"v":0,"d":"0 EUR"}}]
[null,"Fotoattēli un video",{"v":0.1,"d":"10%"},{"$f":"Kopējais_kāzu_budžets*'Budžeta kopsavilkums'!$C10","v":{"v":2000,"d":"2,000 EUR"}},{"$f":"Tabula_Photografēšana_un_video[[#Totals],[Plānotās izmaksas]]","v":{"v":0,"d":"0 EUR"}},{"$f":"Tabula_Photografēšana_un_video[[#Totals],[Faktiskās izmaksas]]","v":{"v":0,"d":"0 EUR"}}]
[null,"Labvēlība un dāvanas",{"v":0.03,"d":"3%"},{"$f":"Kopējais_kāzu_budžets*'Budžeta kopsavilkums'!$C11","v":{"v":600,"d":"600 EUR"}},{"$f":"Tabula_Suvenīri_un_dāvanas[[#Totals],[Plānotās izmaksas]]","v":{"v":0,"d":"0 EUR"}},{"$f":"Tabula_Suvenīri_un_dāvanas[[#Totals],[Faktiskās izmaksas]]","v":{"v":0,"d":"0 EUR"}}]
[null,"Ceremonija",{"v":0.02,"d":"2%"},{"$f":"Kopējais_kāzu_budžets*'Budžeta kopsavilkums'!$C12","v":{"v":400,"d":"400 EUR"}},{"$f":"Tabula_Ceremonija[[#Totals],[Plānotās izmaksas]]","v":{"v":0,"d":"0 EUR"}},{"$f":"Tabula_Ceremonija[[#Totals],[Faktiskās izmaksas]]","v":{"v":0,"d":"0 EUR"}}]
[null,"Vēstuļpapīrs",{"v":0.02,"d":"2%"},{"$f":"Kopējais_kāzu_budžets*'Budžeta kopsavilkums'!$C13","v":{"v":400,"d":"400 EUR"}},{"$f":"Tabula_Drukas_materiāli[[#Totals],[Plānotās izmaksas]]","v":{"v":0,"d":"0 EUR"}},{"$f":"Tabula_Drukas_materiāli[[#Totals],[Faktiskās izmaksas]]","v":{"v":0,"d":"0 EUR"}}]
[null,"Laulību gredzeni",{"v":0.02,"d":"2%"},{"$f":"Kopējais_kāzu_budžets*'Budžeta kopsavilkums'!$C14","v":{"v":400,"d":"400 EUR"}},{"$f":"Tabula_Kāzu_gredzeni[[#Totals],[Plānotās izmaksas]]","v":{"v":0,"d":"0 EUR"}},{"$f":"Tabula_Kāzu_gredzeni[[#Totals],[Faktiskās izmaksas]]","v":{"v":0,"d":"0 EUR"}}]
[null,"Transports",{"v":0.01,"d":"1%"},{"$f":"Kopējais_kāzu_budžets*'Budžeta kopsavilkums'!$C15","v":{"v":200,"d":"200 EUR"}},{"$f":"Tabula_Transports[[#Totals],[Plānotās izmaksas]]","v":{"v":0,"d":"0 EUR"}},{"$f":"Tabula_Transports[[#Totals],[Faktiskās izmaksas]]","v":{"v":0,"d":"0 EUR"}}]
[null,"Kopsumma",{"$f":"SUM(C6:C15)","v":{"v":1,"d":"100%"}},{"$f":"SUM(D6:D15)","v":{"v":20000,"d":"20,000 EUR"}},{"v":0,"d":"0 EUR"},{"v":0,"d":"0 EUR"}]
[]
[null,"IEGULDĪJUMI"]
[null,"Fonda avots","Ieguldījums"]
[null,"Ietaupījumi",{"v":10000,"d":"10,000 EUR"}]
[null,"1. partnera mamma & tētis",{"v":4000,"d":"4,000 EUR"}]
[null,"1. partnera vecvecāki",{"v":2000,"d":"2,000 EUR"}]
[null,"2. partnera mamma & tētis",{"v":4000,"d":"4,000 EUR"}]
[null,"2. partnera vecvecāki",{"v":4000,"d":"4,000 EUR"}]
[null,"Citi ieguldījumi",{"v":2000,"d":"2,000 EUR"}]
[null,"Kopsumma",{"$f":"SUBTOTAL(109,Tabula_Ieguldījumi[Ieguldījums])","v":{"v":26000,"d":"26,000 EUR"}}]
[]
[null,{"$f":"IF(Tabula_Ieguldījumi[[#Totals],[Ieguldījums]]<Kopējais_kāzu_budžets,\"Nosedzamā atšķirība\",\"Pieejamie papildu līdzekļi\")","v":"Pieejamie papildu līdzekļi"},{"$f":"IF(Tabula_Ieguldījumi[[#Totals],[Ieguldījums]]<Kopējais_kāzu_budžets,Kopējais_kāzu_budžets-Tabula_Ieguldījumi[[#Totals],[Ieguldījums]],Tabula_Ieguldījumi[[#Totals],[Ieguldījums]]-Kopējais_kāzu_budžets)","v":{"v":6000,"d":"6,000 EUR"}}]

{"sheet":"Budžeta informācija","index":1,"n_rows":80,"n_cols":4,"rows_kept":80}
[]
[null,"UZŅEMŠANA","Plānotās izmaksas","Faktiskās izmaksas"]
[null,"Norises vieta un noma"]
[null,"Pārtika un serviss"]
[null,"Dzērieni"]
[null,"Kūka"]
[null,"Dažādas maksas"]
[null,"Kopsumma",{"$f":"SUBTOTAL(109,Tabula_Uzņemšana[Plānotās izmaksas])","v":{"v":0,"d":"0.00 EUR"}},{"$f":"SUBTOTAL(109,Tabula_Uzņemšana[Faktiskās izmaksas])","v":{"v":0,"d":"0.00 EUR"}}]
[]
[null,"APĢĒRBS","Plānotās izmaksas","Faktiskās izmaksas"]
[null,"Smokings, uzvalks un/vai kleitas"]
[null,"Izmaiņas"]
[null,"Galvasrota un plīvurs"]
[null,"Aksesuāri"]
[null,"Mati un grims"]
[null,"Dažādas maksas"]
[null,"Kopsumma",{"$f":"SUBTOTAL(109,Tabula_Apģērbs[Plānotās izmaksas])","v":{"v":0,"d":"0.00 EUR"}},{"$f":"SUBTOTAL(109,Tabula_Apģērbs[Faktiskās izmaksas])","v":{"v":0,"d":"0.00 EUR"}}]
[]
[null,"ZIEDI UN ROTĀJUMI","Plānotās izmaksas","Faktiskās izmaksas"]
[null,"Ziedu kārtojumi ceremonijai"]
[null,"Puķu meitenes pumpuri un grozs"]
[null,"Gredzenu spilventiņš"]
[null,"Pušķi"]
[null,"Ziedu piespraudes apģērbam"]
[null,"Ziedu pušķi"]
[null,"Uzņemšanas rotājumi"]
[null,"Apgaismojums"]
[null,"Dažādas maksas"]
[null,"Kopsumma",{"$f":"SUBTOTAL(109,Tabula_Ziedi_un_dekorācijas[Plānotās izmaksas])","v":{"v":0,"d":"0.00 EUR"}},{"$f":"SUBTOTAL(109,Tabula_Ziedi_un_dekorācijas[Faktiskās izmaksas])","v":{"v":0,"d":"0.00 EUR"}}]
[]
[null,"MŪZIKA","Plānotās izmaksas","Faktiskās izmaksas"]
[null,"Ceremonijas mūziķi"]
[null,"Kokteiļu stundas mūziķi"]
[null,"Svinību grupa, dīdžejs vai izklaide"]
[null,"Skaņas sistēmas vai deju grīdas noma"]
[null,"Dažādas maksas"]
[null,"Kopsumma",{"$f":"SUBTOTAL(109,Tabula_Mūzika[Plānotās izmaksas])","v":{"v":0,"d":"0.00 EUR"}},{"$f":"SUBTOTAL(109,Tabula_Mūzika[Faktiskās izmaksas])","v":{"v":0,"d":"0.00 EUR"}}]
[]
[null,"FOTOATTĒLI UN VIDEO","Plānotās izmaksas","Faktiskās izmaksas"]
[null,"Fotografēšana"]
[null,"Video uzņemšana"]
[null,"Papildu izdrukas un albumi"]
[null,"Dažādas maksas"]
[null,"Kopsumma",{"$f":"SUBTOTAL(109,Tabula_Photografēšana_un_video[Plānotās izmaksas])","v":{"v":0,"d":"0.00 EUR"}},{"$f":"SUBTOTAL(109,Tabula_Photografēšana_un_video[Faktiskās izmaksas])","v":{"v":0,"d":"0.00 EUR"}}]
[]
[null,"SUVENĪRI UN DĀVANAS","Plānotās izmaksas","Faktiskās izmaksas"]
[null,"Iepazīšanās dāvanas"]
[null,"Ballītes dāvanas"]
[null,"Dažādas maksas"]
[null,"Kopsumma",{"$f":"SUBTOTAL(109,Tabula_Suvenīri_un_dāvanas[Plānotās izmaksas])","v":{"v":0,"d":"0.00 EUR"}},{"$f":"SUBTOTAL(109,Tabula_Suvenīri_un_dāvanas[Faktiskās izmaksas])","v":{"v":0,"d":"0.00 EUR"}}]
[]
[null,"CEREMONIJA","Plānotās izmaksas","Faktiskās izmaksas"]
[null,"Vietas maksa"]
[null,"Vadītāja maksa vai ziedojums baznīcai"]
[null,"Dažādas maksas"]
[null,"Kopsumma",{"$f":"SUBTOTAL(109,Tabula_Ceremonija[Plānotās izmaksas])","v":{"v":0,"d":"0.00 EUR"}},{"$f":"SUBTOTAL(109,Tabula_Ceremonija[Faktiskās izmaksas])","v":{"v":0,"d":"0.00 EUR"}}]
[]
[null,"VĒSTUĻPAPĪRS","Plānotās izmaksas","Faktiskās izmaksas"]
[null,"Kāzu ielūgumi"]
[null,"Ielūgumi un resursu rezervēšanas protokols"]
[null,"Programmiņas"]
[null,"Sēdvietu kartes un vietkartes"]
[null,"Ēdienkartes"]
[null,"Pateicības kartiņas"]
[null,"Pasta izdevumi"]
[null,"Dažādas maksas"]
[null,"Kopsumma",{"$f":"SUBTOTAL(109,Tabula_Drukas_materiāli[Plānotās izmaksas])","v":{"v":0,"d":"0.00 EUR"}},{"$f":"SUBTOTAL(109,Tabula_Drukas_materiāli[Faktiskās izmaksas])","v":{"v":0,"d":"0.00 EUR"}}]
[]
[null,"LAULĪBU GREDZENI","Plānotās izmaksas","Faktiskās izmaksas"]
[null,"Laulību gredzeni"]
[null,"Gredzenu aksesuāri"]
[null,"Kopsumma",{"$f":"SUBTOTAL(109,Tabula_Kāzu_gredzeni[Plānotās izmaksas])","v":{"v":0,"d":"0.00 EUR"}},{"$f":"SUBTOTAL(109,Tabula_Kāzu_gredzeni[Faktiskās izmaksas])","v":{"v":0,"d":"0.00 EUR"}}]
[]
[null,"TRANSPORTS","Plānotās izmaksas","Faktiskās izmaksas"]
[null,"Galvenās automašīnas noma"]
[null,"Viesu automašīnas noma"]
[null,"Transporta pakalpojumi ārpus pilsētas viesiem"]
[null,"Automašīnu novietošanas stāvvietā pakalpojumi"]
[null,"Dažādas maksas"]
[null,"Kopsumma",{"$f":"SUBTOTAL(109,Tabula_Transports[Plānotās izmaksas])","v":{"v":0,"d":"0.00 EUR"}},{"$f":"SUBTOTAL(109,Tabula_Transports[Faktiskās izmaksas])","v":{"v":0,"d":"0.00 EUR"}}]